fUSD/lending_fUSD_20260407
["ID","MTS","AMOUNT","RATE_DAILY","PERIOD"]
[419940135,1775524245322,-500.0,0.00015973,2]
[419940136,1775524245333,-500.0,0.00015973,2]
[419940137,1775524245343,-500.0,0.00015973,2]
[419940138,1775524245354,-500.0,0.00015973,2]
[419940139,1775524245364,-157.0,0.0001599,3]
[419940140,1775524245374,-932.77109222,0.0001599,2]
[419940141,1775524245384,-932.77109222,0.0001599,2]
[419940142,1775524245397,-500.0,0.00015995,2]
[419940143,1775524245407,-500.0,0.00015995,2]
[419940144,1775524245428,-241182.2869708,0.00015996,2]
[419940145,1775524245441,-3154.1557304,0.00015996,2]
[419940146,1775524245452,-151.0,0.00015996,2]
[419940147,1775524245467,-151.0,0.00015996,2]
[419940148,1775524245477,-183.931815,0.00015996,2]
[419940149,1775524245491,-151.0,0.00015996,2]
[419940150,1775524245512,-151.0,0.00015996,2]
[419940151,1775524245531,-151.0,0.00015996,2]
[419940152,1775524245541,-151.0,0.00015996,2]
[419940153,1775524245552,-151.0,0.00015996,2]
[419940154,1775524245563,-151.0,0.00015996,2]
[419940155,1775524245576,-151.0,0.00015996,2]
[419940156,1775524245587,-151.0,0.00015996,2]
[419940157,1775524245598,-151.0,0.00015996,2]
[419940158,1775524245611,-151.0,0.00015996,2]
[419940159,1775524245636,-151.0,0.00015996,2]
[419940160,1775524245658,-151.0,0.00015996,2]
[419940161,1775524245672,-151.0,0.00015996,2]
[419940162,1775524245689,-557.61796,0.00015996,2]
[419940163,1775524245722,-557.61796,0.00015996,2]
[419940164,1775524245733,-557.61796,0.00015996,2]
[419940165,1775524245743,-151.0,0.00015996,2]
[419940166,1775524245756,-151.0,0.00015996,2]
[419940167,1775524245767,-151.0,0.00015996,2]
[419940168,1775524245778,-557.61796,0.00015996,2]
[419940169,1775524245799,-151.0,0.00015996,2]
[419940170,1775524245809,-151.0,0.00015996,2]
[419940171,1775524245819,-1215.232632,0.00015996,2]
[419940172,1775524245831,-151.0,0.00015996,2]
[419940173,1775524245841,-1215.232632,0.00015996,2]
[419940174,1775524245854,-151.0,0.00015996,2]
[419940175,1775524245865,-1215.232632,0.00015996,2]
[419940176,1775524245876,-1215.232632,0.00015996,2]
[419940177,1775524245887,-312.687928,0.00015996,2]
[419940178,1775524245897,-312.687928,0.00015996,2]
[419940179,1775524245908,-151.0,0.00015996,2]
[419940180,1775524245918,-312.687928,0.00015996,2]
[419940181,1775524245929,-663.224345,0.00015996,2]
[419940182,1775524245940,-312.687928,0.00015996,2]
[419940183,1775524245952,-663.224345,0.00015996,2]
[419940184,1775524245962,-151.0,0.00015996,2]
[419940185,1775524245977,-151.0,0.00015996,2]
[419940186,1775524245987,-663.224345,0.00015996,2]
[419940187,1775524245997,-663.224345,0.00015996,2]
[419940188,1775524246007,-153.811357,0.00015996,2]
[419940189,1775524246024,-153.811357,0.00015996,2]
[419940190,1775524246035,-151.0,0.00015996,2]
[419940191,1775524246045,-153.811357,0.00015996,2]
[419940192,1775524246056,-151.0,0.00015996,2]
[419940193,1775524246077,-151.0,0.00015996,2]
[419940194,1775524246089,-153.811357,0.00015996,2]
[419940195,1775524246103,-151.0,0.00015996,2]
[419940196,1775524246119,-151.0,0.00015996,2]
[419940197,1775524246131,-151.0,0.00015996,2]
[419940198,1775524246149,-151.0,0.00015996,2]
[419940199,1775524246159,-151.0,0.00015996,2]
[419940200,1775524246170,-151.0,0.00015996,2]
[419940201,1775524246180,-151.0,0.00015996,2]
[419940202,1775524246191,-151.0,0.00015996,2]
[419940203,1775524246210,-151.0,0.00015996,2]
[419940204,1775524246225,-151.0,0.00015996,2]
[419940205,1775524246235,-151.0,0.00015996,2]
[419940206,1775524246533,-151.0,0.00015996,2]
[419940207,1775524246543,-151.0,0.00015996,2]
[419940208,1775524246554,-151.0,0.00015996,2]
[419940209,1775524246564,-186.469236,0.00015996,2]
[419940210,1775524246574,-151.0,0.00015996,2]
[419940211,1775524246585,-151.0,0.00015996,2]
[419940212,1775524246596,-186.469236,0.00015996,2]
[419940213,1775524246606,-151.0,0.00015996,2]
[419940214,1775524246618,-186.469236,0.00015996,2]
[419940215,1775524246628,-186.469236,0.00015996,2]
[419940216,1775524246638,-151.0,0.00015996,2]
[419940217,1775524246649,-218.175222,0.00015996,2]
[419940218,1775524246659,-218.175222,0.00015996,2]
[419940219,1775524246669,-151.0,0.00015996,2]
[419940220,1775524246679,-218.175222,0.00015996,2]
[419940221,1775524246690,-151.0,0.00015996,2]
[419940222,1775524246700,-151.0,0.00015996,2]
[419940223,1775524246710,-151.0,0.00015996,2]
[419940224,1775524246720,-218.175222,0.00015996,2]
[419940225,1775524246730,-151.0,0.00015996,2]
[419940226,1775524246740,-151.0,0.00015996,2]
[419940227,1775524246750,-151.0,0.00015996,2]
[419940228,1775524246760,-151.0,0.00015996,2]
[419940229,1775524246779,-151.0,0.00015996,2]
[419940230,1775524246791,-785.971169,0.00015996,2]
[419940231,1775524246803,-151.0,0.00015996,2]
[419940232,1775524246815,-151.0,0.00015996,2]
[419940233,1775524246826,-151.0,0.00015996,2]
[419940234,1775524246839,-785.971169,0.00015996,2]
[419940235,1775524246850,-151.0,0.00015996,2]
[419940236,1775524246860,-785.971169,0.00015996,2]
[419940237,1775524246871,-151.0,0.00015996,2]
[419940238,1775524246881,-785.971169,0.00015996,2]
[419940239,1775524246891,-151.0,0.00015996,2]
[419940240,1775524246906,-437.006685,0.00015996,2]
[419940241,1775524246919,-151.0,0.00015996,2]
[419940242,1775524246930,-437.006685,0.00015996,2]
[419940243,1775524246954,-151.0,0.00015996,2]
[419940244,1775524246966,-437.006685,0.00015996,2]
[419940245,1775524246977,-1744.441802,0.00015996,2]
[419940246,1775524246988,-266.07107,0.00015996,2]
[419940247,1775524247000,-437.006685,0.00015996,2]
[419940248,1775524247011,-1744.441802,0.00015996,2]
[419940249,1775524247024,-1744.441802,0.00015996,2]
[419940250,1775524247034,-285.081448,0.00015996,2]
[419940251,1775524247049,-1744.441802,0.00015996,2]
[419940252,1775524247061,-151.0,0.00015996,2]
[419940253,1775524247071,-285.081448,0.00015996,2]
[419940254,1775524247081,-285.081448,0.00015996,2]
[419940255,1775524247095,-285.081448,0.00015996,2]
[419940256,1775524247135,-151.0,0.00015996,2]
[419940257,1775524247145,-151.0,0.00015996,2]
[419940258,1775524247155,-151.0,0.00015996,2]
[419940259,1775524247166,-429.997282,0.00015996,2]
[419940260,1775524247176,-429.997282,0.00015996,2]
[419940261,1775524247193,-429.997282,0.00015996,2]
[419940262,1775524247203,-429.997282,0.00015996,2]
[419940263,1775524247219,-731.85744,0.00015996,2]
[419940264,1775524247229,-731.85744,0.00015996,2]
[419940265,1775524247239,-151.0,0.00015996,2]
[419940266,1775524247251,-731.85744,0.00015996,2]
[419940267,1775524247261,-731.85744,0.00015996,2]
[419940268,1775524247285,-151.0,0.00015996,2]
[419940269,1775524247297,-151.0,0.00015996,2]
[419940270,1775524247310,-239.339524,0.00015996,2]
[419940271,1775524247321,-239.339524,0.00015996,2]
[419940272,1775524247333,-239.339524,0.00015996,2]
[419940273,1775524247343,-239.339524,0.00015996,2]
[419940274,1775524247354,-151.0,0.00015996,2]
[419940275,1775524247366,-151.0,0.00015996,2]
[419940276,1775524247387,-151.0,0.00015996,2]
[419940277,1775524247398,-151.0,0.00015996,2]
[419940278,1775524247417,-151.0,0.00015996,2]
[419940279,1775524247441,-151.0,0.00015996,2]
[419940280,1775524247451,-188.075147,0.00015996,2]
[419940281,1775524247477,-188.075147,0.00015996,2]
[419940282,1775524247487,-188.075147,0.00015996,2]
[419940283,1775524247500,-188.075147,0.00015996,2]
[419940284,1775524247511,-151.0,0.00015996,2]
[419940285,1775524247521,-151.0,0.00015996,2]
[419940286,1775524247531,-151.0,0.00015996,2]
[419940287,1775524247568,-151.0,0.00015996,2]
[419940288,1775524247579,-151.0,0.00015996,2]
[419940289,1775524247589,-151.0,0.00015996,2]
[419940290,1775524247599,-151.0,0.00015996,2]
[419940291,1775524247609,-165.217577,0.00015996,2]
[419940292,1775524247619,-1145.112529,0.00015996,2]
[419940293,1775524247630,-165.217577,0.00015996,2]
[419940294,1775524247641,-1145.112529,0.00015996,2]
[419940295,1775524247651,-165.217577,0.00015996,2]
[419940296,1775524247662,-1145.112529,0.00015996,2]
[419940297,1775524247672,-165.217577,0.00015996,2]
[419940298,1775524247686,-1145.112529,0.00015996,2]
[419940299,1775524247697,-642.6073,0.00015996,2]
[419940300,1775524247707,-642.6073,0.00015996,2]
[419940301,1775524247717,-642.6073,0.00015996,2]
[419940302,1775524247740,-642.6073,0.00015996,2]
[419940303,1775524247750,-151.0,0.00015996,2]
[419940304,1775524247760,-151.0,0.00015996,2]
[419940305,1775524247770,-151.0,0.00015996,2]
[419940306,1775524247780,-444.5793,0.00015996,2]
[419940307,1775524247790,-151.0,0.00015996,2]
[419940308,1775524247811,-444.5793,0.00015996,2]
[419940309,1775524247836,-151.0,0.00015996,2]
[419940310,1775524247847,-444.5793,0.00015996,2]
[419940311,1775524247858,-151.0,0.00015996,2]
[419940312,1775524247875,-444.5793,0.00015996,2]
[419940313,1775524247885,-216.148334,0.00015996,2]
[419940314,1775524247908,-216.148334,0.00015996,2]
[419940315,1775524247919,-216.148334,0.00015996,2]
[419940316,1775524247929,-151.0,0.00015996,2]
[419940317,1775524247944,-216.148334,0.00015996,2]
[419940318,1775524247954,-151.0,0.00015996,2]
[419940319,1775524247965,-151.0,0.00015996,2]
[419940320,1775524247981,-151.0,0.00015996,2]
[419940321,1775524247997,-547.60527,0.00015996,2]
[419940322,1775524248008,-151.0,0.00015996,2]
[419940323,1775524248020,-326.727378,0.00015996,2]
[419940324,1775524248030,-547.60527,0.00015996,2]
[419940325,1775524248041,-151.0,0.00015996,2]
[419940326,1775524248052,-151.0,0.00015996,2]
[419940327,1775524248085,-326.727378,0.00015996,2]
[419940328,1775524248105,-547.60527,0.00015996,2]
[419940329,1775524248116,-151.0,0.00015996,2]
[419940330,1775524248126,-181.633974,0.00015996,2]
[419940331,1775524248137,-326.727378,0.00015996,2]
[419940332,1775524248148,-151.0,0.00015996,2]
[419940333,1775524248159,-547.60527,0.00015996,2]
[419940334,1775524248169,-423.968554,0.00015996,2]
[419940335,1775524248180,-181.633974,0.00015996,2]
[419940336,1775524248192,-326.727378,0.00015996,2]
[419940338,1775524248203,-423.968554,0.00015996,2]
[419940340,1775524248219,-181.633974,0.00015996,2]
[419940342,1775524248229,-151.0,0.00015996,2]
[419940344,1775524248241,-181.633974,0.00015996,2]
[419940346,1775524248253,-151.0,0.00015996,2]
[419940348,1775524248264,-151.0,0.00015996,2]
[419940350,1775524248274,-423.968554,0.00015996,2]
[419940351,1775524248298,-221.261996,0.00015996,2]
[419940353,1775524248310,-423.968554,0.00015996,2]
[419940355,1775524248322,-221.261996,0.00015996,2]
[419940357,1775524248349,-221.261996,0.00015996,2]
[419940358,1775524248381,-221.261996,0.00015996,2]
[419940360,1775524248408,-151.0,0.00015996,2]
[419940362,1775524248427,-151.0,0.00015996,2]
[419940363,1775524248438,-151.0,0.00015996,2]
[419940364,1775524248468,-666.0,0.00015999,2]
[419940365,1775524248481,-500.0,0.00015999,2]
[419940367,1775524248494,-500.0,0.00015999,2]
[419940369,1775524248507,-500.0,0.00015999,2]
[419940370,1775524248518,-500.0,0.00015999,2]
[419940371,1775524248530,-500.0,0.00015999,2]
[419940372,1775524248541,-500.0,0.00015999,2]
[419940374,1775524248552,-500.0,0.00015999,2]
[419940376,1775524248563,-500.0,0.00015999,2]
[419940378,1775524248576,-500.0,0.00015999,2]
[419940380,1775524248593,-500.0,0.00015999,2]
[419940381,1775524248605,-500.0,0.00015999,2]
[419940382,1775524248631,-500.0,0.00015999,2]
[419940383,1775524248652,-500.0,0.00015999,2]
[419940384,1775524248664,-500.0,0.00015999,2]
[419940385,1775524248677,-502.24991065,0.00015999,2]
[419940386,1775524248688,-620.46209973,0.00015999,2]
[419940387,1775524248704,-151.0,0.00015999,2]
[419940388,1775524248716,-151.0,0.00015999,2]
[419940389,1775524248728,-272.825687,0.00015999,2]
[419940390,1775524248743,-272.825687,0.00015999,2]
[419940391,1775524248755,-272.825687,0.00015999,2]
[419940392,1775524248766,-272.825687,0.00015999,2]
[419940393,1775524248777,-151.0,0.00015999,2]
[419940394,1775524248789,-377.868724,0.00015999,2]
[419940395,1775524248806,-151.0,0.00015999,2]
[419940396,1775524248817,-377.868724,0.00015999,2]
[419940397,1775524248828,-151.0,0.00015999,2]
[419940398,1775524248838,-377.868724,0.00015999,2]
[419940399,1775524248864,-186.275428,0.00015999,2]
[419940400,1775524248875,-150.0,0.00015999,2]
[419940401,1775524248885,-150.0,0.00015999,2]
[419940402,1775524248896,-150.0,0.00015999,2]
[419940403,1775524248908,-150.0,0.00015999,2]
[419940404,1775524248919,-150.0,0.00015999,2]
[419940405,1775524248930,-281.90107112,0.00015999,2]
[419940406,1775524248940,-236.44133559,0.00016,2]
[419940407,1775524248950,-150.0,0.00016,2]
[419940408,1775524248961,-188.66948473,0.00016,2]
[419940409,1775524248972,-158740.16409056,0.00016,2]
[419940410,1775524249023,-1360.95947265,0.00016,2]
[419940411,1775524249166,-415.0,0.00015137,2]
[419940412,1775524249177,-377.868724,0.00015999,2]
[419940413,1775524249189,-170062.85767766,0.00016,2]
[419940414,1775524250882,-652.08200092,0.00016,2]
[419940415,1775524251139,-250.11018453,0.00011471,2]
[419940416,1775524251175,-249.88981547,0.00011471,2]
[419940417,1775524251185,-480.23497959,0.00011471,2]
[419940418,1775524251197,-19.76502041,0.00011471,2]
[419940419,1775524251206,-163.72855784,0.00011471,2]
[419940420,1775524251216,-186.38162669,0.00011471,2]
[419940421,1775524251764,-371.7686821,0.00011159,2]
[419940422,1775524251900,-531.2313179,0.00011159,2]
[419940423,1775524251961,-313.61837331,0.00011471,2]
[419940424,1775524251971,-500.0,0.00011471,2]
[419940425,1775524251980,-500.0,0.00011471,2]
[419940426,1775524251990,-155.15030879,0.00011471,2]
[419940427,1775524252015,-344.84969121,0.00011471,2]
[419940428,1775524252027,-378.39170791,0.00011471,2]
[419940429,1775524252085,-121.60829209,0.00011471,2]
[419940430,1775524252095,-500.0,0.00011471,2]
[419940431,1775524252104,-24.44170861,0.00011471,2]
[419940432,1775524252116,-475.55829139,0.00011471,2]
[419940433,1775524252126,-2022.35857788,0.00012019,2]
[419940436,1775525255562,-250.0,0.0001,2]
[419940437,1775525255585,-958.59150269,0.0001,2]
[419940438,1775525428336,298.15988011,7.781e-05,7]
[419940474,1775525432755,-277.70821029,9.999e-05,2]
[419940475,1775525432767,-922.29178971,9.999e-05,2]
[419940476,1775525432776,-3881.0,0.0001,2]
[419940477,1775525432786,-294.0,0.0001,2]
[419940478,1775525432795,-300.0,0.00010199,2]
[419940479,1775525432804,-5534.0,0.000102,3]
[419940480,1775525432814,-5534.0,0.000105,5]
[419940481,1775525432823,-2000.0,0.00010789,2]
[419940482,1775525432832,-321.91004695,0.00010999,2]
[419940483,1775525432842,-1680.0,0.00010999,2]
[419940484,1775525432852,-250.0,0.00010999,2]
[419940485,1775525432862,-250.0,0.00011,2]
[419940486,1775525432872,-420.0,0.00011217,2]
[419940487,1775525432883,-294.13,0.000113,2]
[419940488,1775525432893,-294.12,0.000113,2]
[419940489,1775525432902,-1000.0,0.000114,2]
[419940490,1775525432912,-500.0,0.00011434,2]
[419940491,1775525432920,-150.0,0.000115,2]
[419940492,1775525432930,-4840.11,0.00011507,2]
[419940493,1775525432939,-1632.0,0.0001161,2]
[419940494,1775525432949,-678.0,0.00011633,2]
[419940495,1775525432958,-833.0,0.00011673,2]
[419940496,1775525432967,-1042.0,0.00011697,2]
[419940497,1775525432976,-150.0,0.00011881,2]
[419940498,1775525432985,-2833.5,0.00011882,2]
[419940499,1775525432994,-2833.5,0.00011882,2]
[419940500,1775525433005,-2500.0,0.00011882,2]
[419940501,1775525433015,-712.87704553,0.00011915,2]
[419940502,1775525433027,-6312.51,0.00011917,2]
[419940503,1775525433038,-1516.35,0.00011945,2]
[419940504,1775525433048,-500.0,0.00011973,2]
[419940505,1775525433058,-500.0,0.00011973,2]
[419940506,1775525433068,-200.0,0.00011975,2]
[419940507,1775525433080,-500.0,0.00011975,2]
[419940508,1775525433090,-1337.30371513,0.00011975,2]
[419940509,1775525433101,-194.36142951,0.00011979,2]
[419940510,1775525433111,-500.0,0.00011979,2]
[419940511,1775525433122,-500.0,0.00011979,2]
[419940512,1775525433131,-500.0,0.00011979,2]
[419940513,1775525433140,-500.0,0.00011979,2]
[419940514,1775525433150,-500.0,0.00011979,2]
[419940515,1775525433159,-500.0,0.00011979,2]
[419940516,1775525433168,-500.0,0.00011979,2]
[419940517,1775525433177,-500.0,0.00011979,2]
[419940518,1775525433186,-500.0,0.00011979,2]
[419940519,1775525433195,-500.0,0.00011979,2]
[419940520,1775525433205,-500.0,0.00011979,2]
[419940521,1775525433215,-500.0,0.00011979,2]
[419940522,1775525433224,-500.0,0.00011979,2]
[419940523,1775525433233,-500.0,0.00011979,2]
[419940524,1775525433242,-500.0,0.00011979,2]
[419940525,1775525433251,-500.0,0.00011979,2]
[419940526,1775525433261,-500.0,0.00011979,2]
[419940527,1775525433270,-500.0,0.00011979,2]
[419940528,1775525433279,-500.0,0.00011979,2]
[419940529,1775525433288,-386.11483198,0.00011979,2]
[419940530,1775525433298,-500.0,0.00011979,2]
[419940531,1775525433307,-500.0,0.00011979,2]
[419940532,1775525433316,-500.0,0.00011979,2]
[419940533,1775525433326,-500.0,0.00011979,2]
[419940534,1775525433335,-500.0,0.00011979,2]
[419940535,1775525433344,-500.0,0.00011979,2]
[419940536,1775525433355,-500.0,0.00011979,2]
[419940537,1775525433364,-500.0,0.00011979,2]
[419940538,1775525433373,-500.0,0.00011979,2]
[419940539,1775525433382,-500.0,0.00011979,2]
[419940540,1775525433392,-500.0,0.00011979,2]
[419940541,1775525433403,-500.0,0.00011979,2]
[419940542,1775525433413,-500.0,0.00011979,2]
[419940543,1775525433423,-500.0,0.00011979,2]
[419940544,1775525433432,-500.0,0.00011979,2]
[419940545,1775525433442,-500.0,0.00011979,2]
[419940546,1775525433451,-500.0,0.00011979,2]
[419940547,1775525433460,-500.0,0.00011979,2]
[419940548,1775525433470,-500.0,0.00011979,2]
[419940549,1775525433480,-500.0,0.00011979,2]
[419940550,1775525433490,-500.0,0.00011979,2]
[419940551,1775525433500,-500.0,0.00011979,2]
[419940552,1775525433510,-500.0,0.00011979,2]
[419940553,1775525433520,-500.0,0.00011979,2]
[419940554,1775525433530,-500.0,0.00011979,2]
[419940555,1775525433539,-500.0,0.00011979,2]
[419940556,1775525433549,-500.0,0.00011979,2]
[419940557,1775525433559,-500.0,0.00011979,2]
[419940558,1775525433568,-500.0,0.00011979,2]
[419940559,1775525433577,-500.0,0.00011979,2]
[419940560,1775525433588,-500.0,0.00011979,2]
[419940561,1775525433597,-500.0,0.00011979,2]
[419940562,1775525433606,-500.0,0.00011979,2]
[419940563,1775525433616,-500.0,0.00011979,2]
[419940564,1775525433626,-500.0,0.00011979,2]
[419940565,1775525433635,-500.0,0.00011979,2]
[419940566,1775525433644,-500.0,0.00011979,2]
[419940567,1775525433654,-500.0,0.00011979,2]
[419940568,1775525433663,-500.0,0.00011979,2]
[419940569,1775525433672,-500.0,0.00011979,2]
[419940570,1775525433681,-500.0,0.00011979,2]
[419940571,1775525433691,-500.0,0.00011979,2]
[419940572,1775525433700,-500.0,0.00011979,2]
[419940573,1775525433709,-500.0,0.00011979,2]
[419940574,1775525433718,-500.0,0.00011979,2]
[419940575,1775525433727,-500.0,0.00011979,2]
[419940576,1775525433736,-500.0,0.00011979,2]
[419940577,1775525433746,-200.0,0.00011979,2]
[419940578,1775525433756,-500.0,0.00011979,2]
[419940579,1775525433766,-500.0,0.00011979,2]
[419940580,1775525433775,-500.0,0.00011979,2]
[419940581,1775525433784,-500.0,0.00011979,2]
[419940582,1775525433794,-500.0,0.00011979,2]
[419940583,1775525433803,-651.9,0.0001198,2]
[419940584,1775525433812,-500.0,0.00011981,2]
[419940585,1775525433823,-634.52569025,0.00011981,2]
[419940586,1775525433832,-500.0,0.00011981,2]
[419940587,1775525433842,-500.0,0.00011981,2]
[419940588,1775525433852,-165.44944149,0.00011981,2]
[419940589,1775525433862,-509.43666158,0.00011981,2]
[419940590,1775525433872,-500.0,0.00011981,2]
[419940591,1775525433882,-500.0,0.00011981,2]
[419940592,1775525433893,-395.38299715,0.00011981,2]
[419940593,1775525433903,-500.0,0.00011981,2]
[419940594,1775525433914,-500.0,0.00011981,2]
[419940595,1775525433923,-500.0,0.00011981,2]
[419940596,1775525433933,-500.0,0.00011981,2]
[419940597,1775525433943,-500.0,0.00011981,2]
[419940598,1775525433953,-500.0,0.00011981,2]
[419940599,1775525433962,-389.22699334,0.00011981,2]
[419940600,1775525433972,-500.0,0.00011981,2]
[419940601,1775525433982,-500.0,0.00011981,2]
[419940602,1775525433991,-500.0,0.00011981,2]
[419940603,1775525434003,-570.9069035,0.00011981,2]
[419940604,1775525434012,-500.0,0.00011981,2]
[419940605,1775525434022,-500.0,0.00011981,2]
[419940606,1775525434031,-152.12369265,0.00011982,2]
[419940607,1775525434041,-3675.26202828,0.00011982,2]
[419940608,1775525434050,-126642.15587554,0.00011982,2]
[419940609,1775525434066,-4937.9923059,0.00011982,2]
[419940610,1775525434077,-1318.4,0.00011982,2]
[419940611,1775525434096,-75297.77862563,0.00011982,2]
[419940612,1775525434110,-17571.2812283,0.00011982,2]
[419940613,1775525434123,-1717.03856977,0.00011982,2]
[419940614,1775525434134,-2502.65486539,0.00011982,2]
[419940618,1775525437638,-217.36678557,0.00011328,2]
[419940619,1775525437647,-690.13780946,0.00011972,2]
[419940620,1775525437657,-19402.49540497,0.00011982,2]
[419940621,1775525437668,-544.82571756,0.00011982,2]
[419940622,1775525437680,-334.615,0.00011982,2]
[419940623,1775525437814,-3765.13921971,0.00011982,2]
[419940624,1775525437825,-876.9420976,0.00011982,2]
[419940625,1775525437836,-10391.57037895,0.00011982,2]
[419940626,1775525437847,-4055.61632103,0.00011982,2]
[419940627,1775525437964,-1395.238068,0.00011982,2]
[419940628,1775525437976,-713.71647197,0.00011982,2]
[419940629,1775525437987,-896.16431314,0.00011982,2]
[419940630,1775525438001,-634.84517207,0.00011982,2]
[419940638,1775525439979,-3565.18647994,0.00011982,2]
[419940639,1775525439992,-4460.42837671,0.00011982,2]
[419940640,1775525440003,-1121821.6035356,0.00011982,2]
[419940641,1775525440547,-380.30947352,0.00011982,2]
[419940657,1775525444282,-6195.43607741,0.00011982,2]
[419940658,1775525444329,-290.0,0.00011982,2]
[419940661,1775525445785,-800.00006697,0.00011982,2]
[419940662,1775525445951,-509.71141163,0.00011982,2]
[419940663,1775525445962,-8477.79378589,0.00011982,2]
[419940664,1775525445973,-9944.24353614,0.00011982,2]
[419940665,1775525445984,-738134.88782604,0.00011982,2]
[419940666,1775525448874,317.99528487,8.893e-05,4]
[419940683,1775526631671,-579.39518408,9.058e-05,2]
[419940684,1775526631681,-116.69972775,9.058e-05,2]
[419940685,1775526631740,-33.69691836,9.058e-05,2]
[419940686,1775526631750,-280.0,9.058e-05,2]
[419940687,1775526631760,-853.68673055,9.258e-05,2]
[419940688,1775526631770,-169.62,9.458e-05,2]
[419940689,1775526631779,-300.0,9.963e-05,2]
[419940690,1775526631791,-300.0,9.963e-05,2]
[419940692,1775526631800,-1200.0,9.963e-05,2]
[419940693,1775526631811,-250.0,9.964e-05,2]
[419940694,1775526631821,-5000.0,9.964e-05,2]
[419940695,1775526631831,-250.0,9.964e-05,2]
[419940696,1775526631841,-202.6942067,0.00010302,2]
[419940697,1775526631851,-1600.0,0.00010326,2]
[419940698,1775526631862,-300.0,0.00010401,2]
[419940699,1775526631872,-300.0,0.00010402,2]
[419940700,1775526631882,-1341.0,0.000105,5]
[419940701,1775526631892,-3673.94,0.00010603,2]
[419940703,1775526631902,-150.0,0.000107,2]
[419940705,1775526631911,-150.0,0.00010733,2]
[419940706,1775526631921,-488.27114629,0.00010733,2]
[419940707,1775526631930,-1730.12681589,0.00010733,2]
[419940708,1775526631940,-1730.12681589,0.00010733,2]
[419940709,1775526631949,-1730.12681589,0.00010733,2]
[419940710,1775526631959,-1730.12681589,0.00010733,2]
[419940711,1775526631968,-1730.12681589,0.00010733,2]
[419940712,1775526631978,-1730.12681589,0.00010733,2]
[419940713,1775526631989,-1730.12681589,0.00010733,2]
[419940714,1775526631999,-1730.12681589,0.00010733,2]
[419940715,1775526632008,-1408.4594182,0.00010733,2]
[419940721,1775526640849,-25841.13,0.00010723,2]
[419940722,1775526640861,-500.0,0.00010733,2]
[419940723,1775526640871,-99775.87,0.00010734,2]
[419940724,1775526640884,-14294.14773814,0.00010734,2]
[419940725,1775526640946,-17976.46845794,0.00010734,2]
[419940726,1775526641040,-594.21740042,0.00010734,2]
[419940727,1775526641052,-7340.40808977,0.00010734,2]
[419940728,1775526641064,-713.9904184,0.00010734,2]
[419940729,1775526641076,-3817.24964351,0.00010734,2]
[419940730,1775526641088,-2458.08875309,0.00010734,2]
[419940731,1775526641101,-3751.34050082,0.00010734,2]
[419940732,1775526641113,-258.6,0.00010734,2]
[419940733,1775526641125,-383.736,0.00010734,2]
[419940734,1775526641146,-546.57217558,0.00010734,2]
[419940735,1775526641158,-2000.0,0.00010734,2]
[419940736,1775526641170,-7279.56751119,0.00010734,2]
[419940737,1775526641190,-7147.02181373,0.00010734,2]
[419940738,1775526641202,-615.21547425,0.00010734,2]
[419940879,1775526642855,-27123.1892824,0.00010734,2]
[419940922,1775526643434,-546.0,0.00010734,2]